[Event "Live Chess"]
[Site "Chess.com"]
[Date "2024.06.01"]
[Round "-"]
[White "GrahamCuthbert"]
[Black "wadsy27"]
[Result "0-1"]
[WhiteElo "1031"]
[BlackElo "2542"]
[TimeControl "300"]
[EndTime "15:31:10 PDT"]
[Termination "wadsy27 won by resignation"]

1. d4 {[%clk 0:04:54.4]} 1... Nf6 {[%clk 0:04:54]} 2. Bf4 {[%clk 0:04:53.3]}
2... c5 {[%clk 0:04:53.6]} 3. c3 {[%clk 0:04:39.4]} 3... Qb6 {[%clk 0:04:51.4]}
4. Qb3 {[%clk 0:04:35.5]} 4... Qxb3 {[%clk 0:04:50]} 5. axb3 {[%clk 0:04:33.6]}
5... cxd4 {[%clk 0:04:49.2]} 6. cxd4 {[%clk 0:04:31.5]} 6... Nc6 {[%clk
0:04:48.4]} 7. e3 {[%clk 0:04:29.4]} 7... d6 {[%clk 0:04:45.8]} 8. Nf3 {[%clk
0:04:26]} 8... Be6 {[%clk 0:04:43.6]} 9. Bc4 {[%clk 0:04:21.1]} 9... Nd5 {[%clk
0:04:41.8]} 10. Bg3 {[%clk 0:04:14.4]} 10... Ndb4 {[%clk 0:04:34.4]} 11. Ra4
{[%clk 0:03:52.2]} 11... Bxc4 {[%clk 0:04:24]} 12. bxc4 {[%clk 0:03:49.1]} 12...
Nd3+ {[%clk 0:04:23.5]} 13. Kd2 {[%clk 0:03:34.5]} 13... Nxb2 {[%clk 0:04:21.9]}
14. Ra2 {[%clk 0:03:23.8]} 14... Nxc4+ {[%clk 0:04:19.4]} 15. Kd3 {[%clk
0:03:18.5]} 15... d5 {[%clk 0:04:15.9]} 16. Nc3 {[%clk 0:03:11.3]} 16... Nb4+
{[%clk 0:04:14.8]} 17. Ke2 {[%clk 0:03:02.4]} 17... Nxa2 {[%clk 0:04:13.4]} 18.
Nxa2 {[%clk 0:03:02.3]} 18... e6 {[%clk 0:04:11.9]} 19. Rb1 {[%clk 0:02:52.8]}
19... b6 {[%clk 0:04:09.8]} 20. Nc3 {[%clk 0:02:49.4]} 20... Be7 {[%clk
0:04:08.1]} 21. Nb5 {[%clk 0:02:44.7]} 21... O-O {[%clk 0:04:05.7]} 22. Ra1
{[%clk 0:02:37.2]} 22... a5 {[%clk 0:04:01.2]} 23. Nc7 {[%clk 0:02:28.3]} 23...
Rac8 {[%clk 0:04:00.1]} 24. Nb5 {[%clk 0:02:25.4]} 24... Nb2 {[%clk 0:03:54]}
25. Ra2 {[%clk 0:02:17.3]} 25... Rc2+ {[%clk 0:03:52.7]} 26. Nd2 {[%clk
0:02:10.7]} 26... Bb4 {[%clk 0:03:49]} 0-1

[Event "Live Chess"]
[Site "Chess.com"]
[Date "2024.06.01"]
[Round "-"]
[White "nigelst"]
[Black "updatedopenings2024"]
[Result "0-1"]
[WhiteElo "1700"]
[BlackElo "1964"]
[TimeControl "300"]
[EndTime "15:31:20 PDT"]
[Termination "updatedopenings2024 won by resignation"]

1. e4 {[%clk 0:04:53.3]} 1... c6 {[%clk 0:04:59.9]} 2. d4 {[%clk 0:04:51.2]}
2... d5 {[%clk 0:04:59.8]} 3. exd5 {[%clk 0:04:49.7]} 3... cxd5 {[%clk
0:04:59.7]} 4. Bd3 {[%clk 0:04:48.4]} 4... Nc6 {[%clk 0:04:58.5]} 5. c3 {[%clk
0:04:45.5]} 5... Nf6 {[%clk 0:04:58.4]} 6. Bf4 {[%clk 0:04:29.5]} 6... Bg4
{[%clk 0:04:55.7]} 7. Qb3 {[%clk 0:04:25.8]} 7... Qd7 {[%clk 0:04:55]} 8. Nd2
{[%clk 0:04:18.2]} 8... e6 {[%clk 0:04:52.2]} 9. Ngf3 {[%clk 0:04:14.5]} 9...
Bd6 {[%clk 0:04:50.7]} 10. Bxd6 {[%clk 0:04:12.3]} 10... Qxd6 {[%clk 0:04:50.6]}
11. O-O {[%clk 0:04:04.3]} 11... O-O {[%clk 0:04:43.7]} 12. Rfe1 {[%clk
0:04:01.4]} 12... a6 {[%clk 0:04:43]} 13. Ne5 {[%clk 0:03:58.8]} 13... Bh5
{[%clk 0:04:42.2]} 14. Ndf3 {[%clk 0:03:53.7]} 14... Bg6 {[%clk 0:04:40]} 15.
Bxg6 {[%clk 0:03:52.6]} 15... hxg6 {[%clk 0:04:39.9]} 16. Nxc6 {[%clk
0:03:51.4]} 16... bxc6 {[%clk 0:04:37.2]} 17. Ne5 {[%clk 0:03:49.3]} 17... Rfb8
{[%clk 0:04:35.8]} 18. Qc2 {[%clk 0:03:47.5]} 18... c5 {[%clk 0:04:35]} 19. dxc5
{[%clk 0:03:35.6]} 19... Qxc5 {[%clk 0:04:34.9]} 20. Rab1 {[%clk 0:03:08.1]}
20... d4 {[%clk 0:04:31.9]} 21. Qc1 {[%clk 0:02:46.5]} 21... dxc3 {[%clk
0:04:29.7]} 22. Qxc3 {[%clk 0:02:45.1]} 22... Qxc3 {[%clk 0:04:28.5]} 23. bxc3
{[%clk 0:02:43.4]} 23... Nd5 {[%clk 0:04:28]} 24. c4 {[%clk 0:02:35]} 24... Nc3
{[%clk 0:04:22]} 25. Rxb8+ {[%clk 0:02:30.3]} 25... Rxb8 {[%clk 0:04:21.9]} 26.
g3 {[%clk 0:02:21.9]} 26... Nxa2 {[%clk 0:04:20.2]} 27. c5 {[%clk 0:02:20]}
27... Rc8 {[%clk 0:04:18.2]} 28. c6 {[%clk 0:02:18.7]} 28... Nb4 {[%clk
0:04:17.7]} 29. Rc1 {[%clk 0:02:16.3]} 29... f6 {[%clk 0:04:16.5]} 30. Nxg6
{[%clk 0:02:13.2]} 30... Kf7 {[%clk 0:04:15.7]} 31. Nf4 {[%clk 0:02:11]} 31...
Rxc6 {[%clk 0:04:15]} 32. Rb1 {[%clk 0:02:05.3]} 32... a5 {[%clk 0:04:05.8]} 33.
h4 {[%clk 0:01:59.4]} 33... e5 {[%clk 0:04:02.2]} 34. Ne2 {[%clk 0:01:55.5]}
34... Rc2 {[%clk 0:04:00.2]} 35. Kf1 {[%clk 0:01:53.2]} 35... Rc4 {[%clk
0:03:55.8]} 36. Ra1 {[%clk 0:01:46.2]} 36... Rc5 {[%clk 0:03:52.5]} 37. Ra4
{[%clk 0:01:43.6]} 37... Ke6 {[%clk 0:03:49.5]} 38. Kg2 {[%clk 0:01:39.7]} 38...
Kd5 {[%clk 0:03:48.5]} 39. Ng1 {[%clk 0:01:36.5]} 39... Kc6 {[%clk 0:03:47.8]}
40. g4 {[%clk 0:01:35.1]} 40... Kb5 {[%clk 0:03:47]} 41. Ra3 {[%clk 0:01:32.4]}
41... a4 {[%clk 0:03:42.9]} 42. Nh3 {[%clk 0:01:16.1]} 42... Nc2 {[%clk
0:03:41]} 43. Ra2 {[%clk 0:01:12.6]} 43... a3 {[%clk 0:03:40.3]} 44. g5 {[%clk
0:01:09]} 44... Ka4 {[%clk 0:03:39.3]} 45. gxf6 {[%clk 0:00:56.8]} 45... gxf6
{[%clk 0:03:39.2]} 46. h5 {[%clk 0:00:55.9]} 46... f5 {[%clk 0:03:38.2]} 47. h6
{[%clk 0:00:54.1]} 47... Kb3 {[%clk 0:03:31.5]} 48. Rxc2 {[%clk 0:00:46.9]}
48... Kxc2 {[%clk 0:03:31.4]} 49. h7 {[%clk 0:00:45.7]} 49... Rc8 {[%clk
0:03:30.6]} 50. Ng5 {[%clk 0:00:44.5]} 50... a2 {[%clk 0:03:27.2]} 51. Nf7
{[%clk 0:00:41.1]} 51... a1=Q {[%clk 0:03:25.9]} 0-1

[Event "Live Chess"]
[Site "Chess.com"]
[Date "2024.06.01"]
[Round "-"]
[White "TheSmoulderingMaster"]
[Black "Zhevzh1k7"]
[Result "1-0"]
[WhiteElo "1736"]
[BlackElo "1098"]
[TimeControl "300"]
[EndTime "15:31:40 PDT"]
[Termination "TheSmoulderingMaster won by checkmate"]

1. e4 {[%clk 0:04:57.9]} 1... c6 {[%clk 0:04:57.2]} 2. d4 {[%clk 0:04:56.7]}
2... d5 {[%clk 0:04:56.5]} 3. Nc3 {[%clk 0:04:56]} 3... dxe4 {[%clk 0:04:54.5]}
4. Nxe4 {[%clk 0:04:55.2]} 4... Bf5 {[%clk 0:04:54.4]} 5. Ng3 {[%clk 0:04:53.9]}
5... Bg6 {[%clk 0:04:54]} 6. Nh3 {[%clk 0:04:52.3]} 6... Nf6 {[%clk 0:04:49.2]}
7. Nf4 {[%clk 0:04:51.1]} 7... Nbd7 {[%clk 0:04:47.2]} 8. h4 {[%clk 0:04:49.6]}
8... h6 {[%clk 0:04:45.2]} 9. Nxg6 {[%clk 0:04:47.5]} 9... fxg6 {[%clk
0:04:44.1]} 10. Bd3 {[%clk 0:04:47.4]} 10... g5 {[%clk 0:04:42.6]} 11. Bg6#
{[%clk 0:04:45.4]} 1-0

[Event "Live Chess"]
[Site "Chess.com"]
[Date "2024.06.01"]
[Round "-"]
[White "defenderalist"]
[Black "CCGoodKnightRookie"]
[Result "0-1"]
[WhiteElo "1532"]
[BlackElo "2350"]
[TimeControl "300"]
[EndTime "15:31:49 PDT"]
[Termination "CCGoodKnightRookie won by resignation"]

1. e4 {[%clk 0:04:59.3]} 1... Nf6 {[%clk 0:04:54.1]} 2. d3 {[%clk 0:04:55]} 2...
e5 {[%clk 0:04:52.8]} 3. f4 {[%clk 0:04:51.9]} 3... Nc6 {[%clk 0:04:49.6]} 4.
Nf3 {[%clk 0:04:50.8]} 4... d6 {[%clk 0:04:44.7]} 5. Be2 {[%clk 0:04:49.2]} 5...
Bg4 {[%clk 0:04:42.9]} 6. O-O {[%clk 0:04:48.1]} 6... Bxf3 {[%clk 0:04:40.9]} 7.
Bxf3 {[%clk 0:04:46.4]} 7... Be7 {[%clk 0:04:39.8]} 8. Nc3 {[%clk 0:04:39.7]}
8... Nd4 {[%clk 0:04:37.7]} 9. fxe5 {[%clk 0:04:33.8]} 9... dxe5 {[%clk
0:04:35.9]} 10. Be3 {[%clk 0:04:28.3]} 10... Bc5 {[%clk 0:04:33.6]} 11. a3
{[%clk 0:04:17]} 11... O-O {[%clk 0:04:24.6]} 12. b4 {[%clk 0:04:14.5]} 12...
Bb6 {[%clk 0:04:19.2]} 13. Na4 {[%clk 0:04:01.2]} 13... Qd7 {[%clk 0:04:07.4]}
14. Nxb6 {[%clk 0:03:58.3]} 14... axb6 {[%clk 0:04:04.5]} 15. Bg4 {[%clk
0:03:44.8]} 15... Qxg4 {[%clk 0:04:02]} 16. Rxf6 {[%clk 0:03:37.3]} 16... Qxd1+
{[%clk 0:04:00.2]} 17. Rxd1 {[%clk 0:03:34.1]} 17... gxf6 {[%clk 0:04:00.1]} 0-1

[Event "Live Chess"]
[Site "Chess.com"]
[Date "2024.06.01"]
[Round "-"]
[White "degringolade64"]
[Black "upoe610"]
[Result "1-0"]
[WhiteElo "2128"]
[BlackElo "2195"]
[TimeControl "300"]
[EndTime "15:31:52 PDT"]
[Termination "degringolade64 won by resignation"]

1. e4 {[%clk 0:04:57]} 1... e5 {[%clk 0:04:58.2]} 2. f3 {[%clk 0:04:56.1]} 2...
Nf6 {[%clk 0:04:55.8]} 3. Bc4 {[%clk 0:04:49.7]} 3... c6 {[%clk 0:04:53.5]} 4.
Ne2 {[%clk 0:04:49]} 4... d5 {[%clk 0:04:52.2]} 5. Bb3 {[%clk 0:04:47.6]} 5...
dxe4 {[%clk 0:04:50.3]} 6. fxe4 {[%clk 0:04:45.5]} 6... Nxe4 {[%clk 0:04:49.6]}
7. d4 {[%clk 0:04:40.9]} 7... exd4 {[%clk 0:04:43.7]} 8. O-O {[%clk 0:04:37.4]}
8... Bc5 {[%clk 0:04:39.4]} 9. Bxf7+ {[%clk 0:04:32.6]} 9... Ke7 {[%clk
0:04:34.9]} 10. Qd3 {[%clk 0:04:01.9]} 10... Qd5 {[%clk 0:04:27.7]} 11. Bxd5
{[%clk 0:03:59.8]} 11... cxd5 {[%clk 0:04:25.9]} 12. Bg5+ {[%clk 0:03:54.1]}
12... Nxg5 {[%clk 0:04:24.3]} 13. Nxd4 {[%clk 0:03:48.6]} 13... Ne4 {[%clk
0:04:21.6]} 14. Nc3 {[%clk 0:03:42.5]} 14... Nc6 {[%clk 0:04:20.6]} 15. Nxd5+
{[%clk 0:03:40.4]} 15... Kd6 {[%clk 0:04:18.5]} 16. Qxe4 {[%clk 0:03:35.5]}
16... Bxd4+ {[%clk 0:04:17.2]} 17. Kh1 {[%clk 0:03:33.4]} 17... Be6 {[%clk
0:04:17.1]} 18. Nf4 {[%clk 0:03:19.5]} 18... Rae8 {[%clk 0:04:13.9]} 19. Nxe6
{[%clk 0:02:54]} 19... Rxe6 {[%clk 0:04:11.9]} 20. Qd3 {[%clk 0:02:53.6]} 20...
Kc7 {[%clk 0:04:10.8]} 21. c3 {[%clk 0:02:51.7]} 21... Bb6 {[%clk 0:04:07.8]}
22. Rad1 {[%clk 0:02:51.1]} 22... Rd8 {[%clk 0:04:05.7]} 23. Qg3+ {[%clk
0:02:46]} 23... Kc8 {[%clk 0:04:04]} 24. Qxg7 {[%clk 0:02:41.5]} 24... Rde8
{[%clk 0:03:58.7]} 25. g3 {[%clk 0:02:31.9]} 25... Ne5 {[%clk 0:03:56.4]} 26.
Rf8 {[%clk 0:02:26.9]} 26... h5 {[%clk 0:03:43.4]} 27. Qg8 {[%clk 0:02:02.8]}
27... Ng4 {[%clk 0:03:27.2]} 28. Rxe8+ {[%clk 0:02:00.3]} 1-0

[Event "Live Chess"]
[Site "Chess.com"]
[Date "2024.06.01"]
[Round "-"]
[White "booktrunk"]
[Black "jk0110"]
[Result "1-0"]
[WhiteElo "1456"]
[BlackElo "1232"]
[TimeControl "300"]
[EndTime "15:31:57 PDT"]
[Termination "booktrunk won on time"]

1. d4 {[%clk 0:04:51.8]} 1... Nf6 {[%clk 0:04:56.3]} 2. Nc3 {[%clk 0:04:49.2]}
2... d5 {[%clk 0:04:53]} 3. Bf4 {[%clk 0:04:46.5]} 3... c5 {[%clk 0:04:47.4]} 4.
dxc5 {[%clk 0:04:43.8]} 4... Bf5 {[%clk 0:04:33.5]} 5. e3 {[%clk 0:04:29.4]}
5... e6 {[%clk 0:04:30.6]} 6. Nb5 {[%clk 0:04:27.2]} 6... Qa5+ {[%clk
0:04:27.9]} 7. c3 {[%clk 0:04:23.7]} 7... Na6 {[%clk 0:04:18.1]} 8. b4 {[%clk
0:04:12.5]} 8... Qd8 {[%clk 0:04:09.1]} 9. Nd4 {[%clk 0:04:10.9]} 9... Bg6
{[%clk 0:03:58.5]} 10. Bxa6 {[%clk 0:04:06.5]} 10... bxa6 {[%clk 0:03:54.3]} 11.
Ngf3 {[%clk 0:04:00.5]} 11... a5 {[%clk 0:03:19.8]} 12. O-O {[%clk 0:03:51.1]}
12... axb4 {[%clk 0:03:14.7]} 13. cxb4 {[%clk 0:03:49.1]} 13... a6 {[%clk
0:03:02.9]} 14. Nc6 {[%clk 0:03:36.7]} 14... Qd7 {[%clk 0:02:46.5]} 15. Nfe5
{[%clk 0:03:33.6]} 15... Qc8 {[%clk 0:02:34.3]} 16. Qa4 {[%clk 0:03:25.7]} 16...
Nd7 {[%clk 0:02:22.2]} 17. Nxd7 {[%clk 0:03:19.7]} 17... Qxd7 {[%clk 0:02:13.9]}
18. b5 {[%clk 0:03:04.2]} 18... Bd3 {[%clk 0:02:10.5]} 19. Ne5 {[%clk
0:02:48.5]} 19... Qxb5 {[%clk 0:01:26.7]} 20. Qxb5+ {[%clk 0:02:46.1]} 20...
Bxb5 {[%clk 0:01:24.1]} 21. Rfc1 {[%clk 0:02:44.1]} 21... Rc8 {[%clk 0:01:15.1]}
22. c6 {[%clk 0:02:42.1]} 22... Ba3 {[%clk 0:01:06]} 23. Rc2 {[%clk 0:02:24]}
23... Ba4 {[%clk 0:00:58.9]} 24. Rd2 {[%clk 0:02:14.3]} 24... Bxc6 {[%clk
0:00:44.2]} 25. Nxc6 {[%clk 0:02:10.9]} 25... Rxc6 {[%clk 0:00:42.6]} 26. h3
{[%clk 0:02:09.7]} 26... O-O {[%clk 0:00:39.2]} 27. Rb1 {[%clk 0:02:08]} 27...
Rfc8 {[%clk 0:00:32]} 28. Rb3 {[%clk 0:02:01.1]} 28... Bd6 {[%clk 0:00:21.1]}
29. Bg3 {[%clk 0:01:54.7]} 29... Rc1+ {[%clk 0:00:15.5]} 30. Kh2 {[%clk
0:01:52]} 30... Bxg3+ {[%clk 0:00:14.1]} 31. Kxg3 {[%clk 0:01:49.7]} 31... h6
{[%clk 0:00:10.6]} 32. Ra3 {[%clk 0:01:46.3]} 32... R8c4 {[%clk 0:00:06.9]} 33.
Rxa6 {[%clk 0:01:43.9]} 33... h5 {[%clk 0:00:04.8]} 34. f4 {[%clk 0:01:39.5]}
34... g5 {[%clk 0:00:00.5]} 35. Rd4 {[%clk 0:01:34.7]} 1-0

[Event "Live Chess"]
[Site "Chess.com"]
[Date "2024.06.01"]
[Round "-"]
[White "ClassyChameleon"]
[Black "WelshTiger"]
[Result "0-1"]
[WhiteElo "1521"]
[BlackElo "2497"]
[TimeControl "300"]
[EndTime "15:32:12 PDT"]
[Termination "WelshTiger won on time"]

1. e4 {[%clk 0:04:56.8]} 1... c5 {[%clk 0:04:58.6]} 2. Nf3 {[%clk 0:04:55.5]}
2... d6 {[%clk 0:04:57.9]} 3. d4 {[%clk 0:04:54.9]} 3... cxd4 {[%clk 0:04:57.3]}
4. Nxd4 {[%clk 0:04:54.8]} 4... Nf6 {[%clk 0:04:56.2]} 5. Nc3 {[%clk 0:04:52.2]}
5... Nc6 {[%clk 0:04:55.6]} 6. Nxc6 {[%clk 0:04:50.6]} 6... bxc6 {[%clk
0:04:54.7]} 7. Bd3 {[%clk 0:04:47.1]} 7... e5 {[%clk 0:04:53.1]} 8. O-O {[%clk
0:04:45.3]} 8... Be6 {[%clk 0:04:51.7]} 9. Be3 {[%clk 0:04:40.6]} 9... Be7
{[%clk 0:04:50.3]} 10. h3 {[%clk 0:04:28.2]} 10... O-O {[%clk 0:04:48.6]} 11.
Ne2 {[%clk 0:04:02.9]} 11... d5 {[%clk 0:04:45.7]} 12. exd5 {[%clk 0:04:01.2]}
12... cxd5 {[%clk 0:04:44.8]} 13. Ng3 {[%clk 0:03:56.5]} 13... g6 {[%clk
0:04:41.6]} 14. Bh6 {[%clk 0:03:53.1]} 14... Re8 {[%clk 0:04:40.6]} 15. Bb5
{[%clk 0:03:42.9]} 15... Bd7 {[%clk 0:04:35]} 16. Bxd7 {[%clk 0:03:41.6]} 16...
Qxd7 {[%clk 0:04:34.5]} 17. c3 {[%clk 0:03:39.5]} 17... Rab8 {[%clk 0:04:32.4]}
18. Qc2 {[%clk 0:03:33.8]} 18... Qb5 {[%clk 0:04:29.3]} 19. b4 {[%clk
0:03:31.9]} 19... Rec8 {[%clk 0:04:28]} 20. a3 {[%clk 0:03:30.3]} 20... d4
{[%clk 0:04:17.6]} 21. Ne4 {[%clk 0:03:19.8]} 21... Nxe4 {[%clk 0:04:14.1]} 22.
Qxe4 {[%clk 0:03:18.7]} 22... Rxc3 {[%clk 0:04:12.3]} 23. Rfc1 {[%clk
0:03:11.5]} 23... Bf8 {[%clk 0:03:45.7]} 24. Bd2 {[%clk 0:02:59.6]} 24... Rcc8
{[%clk 0:03:30.3]} 25. a4 {[%clk 0:02:16]} 25... Rxc1+ {[%clk 0:03:21.7]} 26.
Rxc1 {[%clk 0:02:13.4]} 26... Qxa4 {[%clk 0:03:07.8]} 27. Qxe5 {[%clk
0:02:07.3]} 27... Rd8 {[%clk 0:03:06.3]} 28. Bg5 {[%clk 0:02:04.2]} 28... Bg7
{[%clk 0:02:53.8]} 29. Qe7 {[%clk 0:01:40.5]} 29... Re8 {[%clk 0:02:48]} 30. Qb7
{[%clk 0:01:30.3]} 30... d3 {[%clk 0:02:35.7]} 31. Rc8 {[%clk 0:01:28.9]} 31...
h6 {[%clk 0:02:28.6]} 32. Be3 {[%clk 0:01:14.4]} 32... Rxc8 {[%clk 0:02:17.2]}
33. Qxc8+ {[%clk 0:01:12.9]} 33... Kh7 {[%clk 0:02:16.9]} 34. Qc4 {[%clk
0:00:59.7]} 34... d2 {[%clk 0:02:11]} 35. Bxd2 {[%clk 0:00:47]} 35... Qd1+
{[%clk 0:02:09.9]} 36. Kh2 {[%clk 0:00:44.8]} 36... Qxd2 {[%clk 0:02:09.3]} 37.
b5 {[%clk 0:00:44]} 37... Qd6+ {[%clk 0:02:07.4]} 38. g3 {[%clk 0:00:42.3]}
38... Qe6 {[%clk 0:01:59.7]} 39. Qc7 {[%clk 0:00:33.8]} 39... Bd4 {[%clk
0:01:57.3]} 40. Kg2 {[%clk 0:00:28.4]} 40... Bb6 {[%clk 0:01:55.9]} 41. Qc6
{[%clk 0:00:20.8]} 41... Qxc6+ {[%clk 0:01:54.7]} 42. bxc6 {[%clk 0:00:20.6]}
42... Kg7 {[%clk 0:01:53.9]} 43. Kf3 {[%clk 0:00:20.2]} 43... Kf6 {[%clk
0:01:53.4]} 44. Ke4 {[%clk 0:00:20.1]} 44... Ke6 {[%clk 0:01:52.8]} 45. f4
{[%clk 0:00:17.8]} 45... f5+ {[%clk 0:01:50.1]} 46. Kf3 {[%clk 0:00:15.9]} 46...
Kd5 {[%clk 0:01:49.6]} 47. g4 {[%clk 0:00:15.8]} 47... Kxc6 {[%clk 0:01:48.2]}
48. gxf5 {[%clk 0:00:15]} 48... gxf5 {[%clk 0:01:47.5]} 49. Kg3 {[%clk
0:00:13.3]} 49... Bd8 {[%clk 0:01:46.6]} 50. Kf3 {[%clk 0:00:10.1]} 50... Kd5
{[%clk 0:01:45.5]} 51. Ke3 {[%clk 0:00:09.2]} 51... a5 {[%clk 0:01:44.5]} 52.
Kd3 {[%clk 0:00:08.4]} 52... a4 {[%clk 0:01:43.8]} 53. Kc3 {[%clk 0:00:07.7]}
53... a3 {[%clk 0:01:42.9]} 54. Kb3 {[%clk 0:00:06.8]} 54... Be7 {[%clk
0:01:42.3]} 55. h4 {[%clk 0:00:02.5]} 55... Ke4 {[%clk 0:01:41]} 56. h5 {[%clk
0:00:01.4]} 56... Kxf4 {[%clk 0:01:39.7]} 0-1

[Event "Live Chess"]
[Site "Chess.com"]
[Date "2024.06.01"]
[Round "-"]
[White "KwikPhoenix"]
[Black "gmnorfolk"]
[Result "1-0"]
[WhiteElo "2463"]
[BlackElo "2108"]
[TimeControl "300"]
[EndTime "15:32:20 PDT"]
[Termination "KwikPhoenix won by resignation"]

1. b3 {[%clk 0:04:58.2]} 1... e5 {[%clk 0:04:58.7]} 2. Bb2 {[%clk 0:04:57.8]}
2... Nc6 {[%clk 0:04:56.9]} 3. e3 {[%clk 0:04:57.4]} 3... Nf6 {[%clk 0:04:56]}
4. Bb5 {[%clk 0:04:56.9]} 4... e4 {[%clk 0:04:55]} 5. d3 {[%clk 0:04:55]} 5...
exd3 {[%clk 0:04:51.2]} 6. Qxd3 {[%clk 0:04:54.6]} 6... d5 {[%clk 0:04:48.3]} 7.
Nf3 {[%clk 0:04:53.8]} 7... a6 {[%clk 0:04:46.3]} 8. Bxc6+ {[%clk 0:04:52.9]}
8... bxc6 {[%clk 0:04:46]} 9. O-O {[%clk 0:04:52.4]} 9... Bd6 {[%clk 0:04:42.9]}
10. h3 {[%clk 0:04:51.2]} 10... O-O {[%clk 0:04:41.2]} 11. Nbd2 {[%clk
0:04:50.9]} 11... Re8 {[%clk 0:04:39.8]} 12. c4 {[%clk 0:04:49.6]} 12... Be6
{[%clk 0:04:35.8]} 13. Rfd1 {[%clk 0:04:47.3]} 13... Qe7 {[%clk 0:04:26.7]} 14.
Nd4 {[%clk 0:04:46.4]} 14... Bd7 {[%clk 0:04:24.6]} 15. Nf5 {[%clk 0:04:45.2]}
15... Bxf5 {[%clk 0:04:20.4]} 16. Qxf5 {[%clk 0:04:44.2]} 16... Rab8 {[%clk
0:04:06.4]} 17. Rac1 {[%clk 0:04:12.9]} 17... Ba3 {[%clk 0:03:58.9]} 18. Bxf6
{[%clk 0:04:04.6]} 18... gxf6 {[%clk 0:03:48.2]} 19. Rc2 {[%clk 0:04:02.8]}
19... Rbd8 {[%clk 0:03:43.3]} 20. Nf3 {[%clk 0:03:53.8]} 20... dxc4 {[%clk
0:03:26.9]} 21. Rxd8 {[%clk 0:03:51.9]} 21... Rxd8 {[%clk 0:03:24.6]} 22. Rxc4
{[%clk 0:03:51.4]} 22... Rd1+ {[%clk 0:03:18.7]} 23. Kh2 {[%clk 0:03:50.7]}
23... Bd6+ {[%clk 0:03:17.4]} 24. g3 {[%clk 0:03:49.1]} 24... c5 {[%clk
0:03:09.1]} 25. Rg4+ {[%clk 0:03:43.9]} 25... Kf8 {[%clk 0:03:02.3]} 26. Qc8+
{[%clk 0:03:39.9]} 1-0

[Event "Live Chess"]
[Site "Chess.com"]
[Date "2024.06.01"]
[Round "-"]
[White "NAZRIZ1977"]
[Black "DJ_Lambton"]
[Result "1-0"]
[WhiteElo "2165"]
[BlackElo "1759"]
[TimeControl "300"]
[EndTime "15:32:26 PDT"]
[Termination "NAZRIZ1977 won by resignation"]

1. d4 {[%clk 0:04:55.8]} 1... d5 {[%clk 0:04:59]} 2. Nf3 {[%clk 0:04:55.1]} 2...
Nf6 {[%clk 0:04:58]} 3. e3 {[%clk 0:04:54.6]} 3... Bg4 {[%clk 0:04:56.5]} 4. c4
{[%clk 0:04:53]} 4... e6 {[%clk 0:04:53.7]} 5. Qb3 {[%clk 0:04:52.1]} 5... b6
{[%clk 0:04:50.8]} 6. Nc3 {[%clk 0:04:50.3]} 6... dxc4 {[%clk 0:04:46.9]} 7.
Bxc4 {[%clk 0:04:47.8]} 7... Be7 {[%clk 0:04:46]} 8. Ne5 {[%clk 0:04:45.6]} 8...
Bf5 {[%clk 0:04:44.3]} 9. Bb5+ {[%clk 0:04:43.9]} 9... Nbd7 {[%clk 0:04:38.2]}
10. Qa4 {[%clk 0:04:36.1]} 10... a6 {[%clk 0:04:26.3]} 11. Bc6 {[%clk
0:04:27.6]} 11... Ra7 {[%clk 0:04:23.5]} 12. Bxd7+ {[%clk 0:04:20.6]} 12... Nxd7
{[%clk 0:04:22.4]} 13. Nc6 {[%clk 0:04:19.9]} 13... Ra8 {[%clk 0:04:20.4]} 14.
Nxd8 {[%clk 0:04:18.2]} 1-0

[Event "Live Chess"]
[Site "Chess.com"]
[Date "2024.06.01"]
[Round "-"]
[White "Duke_of_Bebington"]
[Black "JanMur7"]
[Result "0-1"]
[WhiteElo "1632"]
[BlackElo "2298"]
[TimeControl "300"]
[EndTime "15:32:26 PDT"]
[Termination "JanMur7 won by resignation"]

1. e4 {[%clk 0:04:58]} 1... g6 {[%clk 0:04:59]} 2. d4 {[%clk 0:04:56.1]} 2...
Bg7 {[%clk 0:04:58.4]} 3. Be3 {[%clk 0:04:54.3]} 3... c5 {[%clk 0:04:57.9]} 4.
c3 {[%clk 0:04:50.5]} 4... cxd4 {[%clk 0:04:57]} 5. cxd4 {[%clk 0:04:49.3]} 5...
d5 {[%clk 0:04:56.2]} 6. e5 {[%clk 0:04:47.1]} 6... Nc6 {[%clk 0:04:54.5]} 7. a3
{[%clk 0:04:44.6]} 7... f6 {[%clk 0:04:52.8]} 8. f4 {[%clk 0:04:42]} 8... Nh6
{[%clk 0:04:45.4]} 9. Bd3 {[%clk 0:04:37.3]} 9... Ng4 {[%clk 0:04:40.5]} 10. Qe2
{[%clk 0:04:34.9]} 10... Nxe3 {[%clk 0:04:38.8]} 11. Qxe3 {[%clk 0:04:33.8]}
11... Qb6 {[%clk 0:04:35.8]} 12. Qf2 {[%clk 0:04:28.8]} 12... Qxd4 {[%clk
0:04:33.3]} 13. Qxd4 {[%clk 0:04:27.5]} 13... Nxd4 {[%clk 0:04:33.2]} 14. Nf3
{[%clk 0:04:24.3]} 14... Nb3 {[%clk 0:04:30.1]} 15. Ra2 {[%clk 0:04:23.3]} 15...
Nc1 {[%clk 0:04:29.3]} 0-1

[Event "Live Chess"]
[Site "Chess.com"]
[Date "2024.06.01"]
[Round "-"]
[White "anatoliy10912"]
[Black "MagnersCarlsberg2870"]
[Result "1-0"]
[WhiteElo "1775"]
[BlackElo "1757"]
[TimeControl "300"]
[EndTime "15:32:28 PDT"]
[Termination "anatoliy10912 won by resignation"]

1. e4 {[%clk 0:04:57.1]} 1... d5 {[%clk 0:04:56.4]} 2. e5 {[%clk 0:04:54.6]}
2... c5 {[%clk 0:04:54.6]} 3. c3 {[%clk 0:04:48.7]} 3... Bf5 {[%clk 0:04:53.1]}
4. d4 {[%clk 0:04:44.8]} 4... e6 {[%clk 0:04:52.1]} 5. Nf3 {[%clk 0:04:38.6]}
5... Nc6 {[%clk 0:04:50.4]} 6. Qb3 {[%clk 0:04:31.7]} 6... Qb6 {[%clk
0:04:47.8]} 7. Be3 {[%clk 0:04:15.9]} 7... c4 {[%clk 0:04:45.8]} 8. Qxb6 {[%clk
0:04:02.7]} 8... axb6 {[%clk 0:04:44.5]} 9. Nbd2 {[%clk 0:04:00.4]} 9... b5
{[%clk 0:04:43.3]} 10. b3 {[%clk 0:03:51.8]} 10... cxb3 {[%clk 0:04:30.8]} 11.
Nxb3 {[%clk 0:03:46.9]} 11... b4 {[%clk 0:04:29.7]} 12. Bd2 {[%clk 0:03:30.3]}
12... Bc2 {[%clk 0:04:27.1]} 13. Nc1 {[%clk 0:03:01.1]} 13... bxc3 {[%clk
0:04:19.8]} 14. Bxc3 {[%clk 0:02:59.6]} 14... Bb4 {[%clk 0:04:19]} 15. Bxb4
{[%clk 0:02:40.8]} 15... Nxb4 {[%clk 0:04:17.7]} 16. Bb5+ {[%clk 0:02:38.2]}
16... Ke7 {[%clk 0:04:14.3]} 17. Kd2 {[%clk 0:02:29.9]} 17... Ra5 {[%clk
0:04:07.1]} 18. a3 {[%clk 0:02:12.1]} 18... Be4 {[%clk 0:03:53.8]} 19. a4 {[%clk
0:02:01.1]} 19... Nc2 {[%clk 0:03:44.3]} 20. Ra2 {[%clk 0:01:52]} 20... Bxf3
{[%clk 0:03:42.9]} 21. Rxc2 {[%clk 0:01:41.1]} 21... Be4 {[%clk 0:03:41.5]} 22.
Rc7+ {[%clk 0:01:39.2]} 22... Kd8 {[%clk 0:03:38]} 23. Rxf7 {[%clk 0:01:28.7]}
23... Nh6 {[%clk 0:03:36.8]} 24. Rxg7 {[%clk 0:01:20.5]} 24... Rf8 {[%clk
0:03:35.6]} 25. f3 {[%clk 0:01:18.3]} 25... Bg6 {[%clk 0:03:28.4]} 26. Rxb7
{[%clk 0:01:11.7]} 26... Nf5 {[%clk 0:03:27]} 27. Ne2 {[%clk 0:01:08.5]} 27...
Kc8 {[%clk 0:03:13.3]} 28. Rb6 {[%clk 0:00:56.1]} 28... Kc7 {[%clk 0:03:10.9]}
29. Rxe6 {[%clk 0:00:52.5]} 1-0